fUSD/lending_fUSD_20260112
["ID","MTS","AMOUNT","RATE_DAILY","PERIOD"]
[401414467,1768193448020,-500.0,0.00017073,2]
[401414468,1768193448031,-500.84079337,0.00017073,2]
[401414469,1768193448041,-500.0,0.00017073,2]
[401414470,1768193448050,-166.96227274,0.00017073,2]
[401414471,1768193448060,-500.0,0.00017073,2]
[401414472,1768193448069,-501.77861007,0.00017073,2]
[401414473,1768193448080,-500.0,0.00017073,2]
[401414474,1768193448090,-500.0,0.00017073,2]
[401414475,1768193448103,-500.51842778,0.00017073,2]
[401414476,1768193448112,-500.0,0.00017073,2]
[401414477,1768193448121,-503.84192068,0.00017073,2]
[401414478,1768193448130,-162.59101262,0.00017073,2]
[401414479,1768193448142,-647.42016729,0.00017073,2]
[401414480,1768193448153,-169.17232811,0.00017073,2]
[401414481,1768193448163,-500.0,0.00017073,2]
[401414482,1768193448173,-500.0,0.00017073,2]
[401414483,1768193448184,-500.0,0.00017073,2]
[401414484,1768193448194,-500.53829083,0.00017073,2]
[401414485,1768193448204,-500.85931304,0.00017073,2]
[401414486,1768193448215,-500.0,0.00017073,2]
[401414487,1768193448225,-500.0,0.00017073,2]
[401414488,1768193448235,-500.0,0.00017073,2]
[401414489,1768193448245,-500.57959935,0.00017073,2]
[401414490,1768193448255,-500.0,0.00017073,2]
[401414491,1768193448265,-500.38035534,0.00017073,2]
[401414492,1768193448274,-486.88056707,0.00017073,2]
[401414493,1768193448283,-500.84213941,0.00017073,2]
[401414494,1768193448293,-503.00247421,0.00017073,2]
[401414495,1768193448302,-500.19211788,0.00017073,2]
[401414496,1768193448311,-500.32712274,0.00017073,2]
[401414497,1768193448320,-500.26791262,0.00017073,2]
[401414498,1768193448329,-163.4155148,0.00017073,2]
[401414499,1768193448339,-350.68764993,0.00017073,2]
[401414500,1768193448349,-500.0,0.00017081,2]
[401414501,1768193448358,-30000.0,0.00017083,2]
[401414502,1768193448367,-1073.4,0.00017088,2]
[401414503,1768193448377,-350.68764993,0.00017091,2]
[401414504,1768193448386,-150.0,0.000171,2]
[401414505,1768193448395,-150.0,0.000171,2]
[401414506,1768193448405,-150.0,0.000171,2]
[401414507,1768193448414,-150.0,0.000171,2]
[401414508,1768193448423,-150.0,0.000171,2]
[401414509,1768193448433,-150.0,0.000171,2]
[401414510,1768193448442,-150.0,0.000171,2]
[401414511,1768193448452,-150.0,0.000171,2]
[401414512,1768193448462,-350.68764993,0.00017109,2]
[401414513,1768193448471,-350.68764993,0.00017127,2]
[401414514,1768193448480,-1101.0,0.00017128,2]
[401414515,1768193448489,-350.68764993,0.00017145,2]
[401414516,1768193448498,-350.68764993,0.00017164,2]
[401414517,1768193448507,-150.0,0.00017169,2]
[401414518,1768193448516,-200.0,0.00017174,2]
[401414519,1768193448525,-467.15,0.00017178,2]
[401414520,1768193448534,-181.61,0.00017178,2]
[401414521,1768193448543,-467.15,0.00017178,2]
[401414522,1768193448552,-467.15,0.00017178,2]
[401414523,1768193448561,-467.15,0.00017178,2]
[401414524,1768193448571,-759.92,0.00017178,2]
[401414525,1768193448580,-179.28,0.00017178,2]
[401414526,1768193448589,-301.93,0.00017178,2]
[401414527,1768193448598,-305.42,0.00017178,2]
[401414528,1768193448607,-311.19,0.00017178,2]
[401414529,1768193448616,-178.11,0.00017178,2]
[401414530,1768193448625,-157.73,0.00017178,2]
[401414531,1768193448634,-150.0,0.00017178,2]
[401414532,1768193448643,-179.28,0.00017178,2]
[401414533,1768193448652,-556.81,0.00017178,2]
[401414534,1768193448661,-150.0,0.00017178,2]
[401414535,1768193448670,-171.53,0.00017178,2]
[401414536,1768193448679,-179.28,0.00017178,2]
[401414537,1768193448688,-171.53,0.00017178,2]
[401414538,1768193448697,-556.81,0.00017178,2]
[401414539,1768193448706,-171.53,0.00017178,2]
[401414540,1768193448715,-179.28,0.00017178,2]
[401414541,1768193448725,-556.81,0.00017178,2]
[401414542,1768193448733,-556.81,0.00017178,2]
[401414543,1768193448743,-350.68764993,0.00017182,2]
[401414544,1768193448753,-219.07665552,0.00017183,2]
[401414545,1768193448765,-190.62,0.00017188,2]
[401414546,1768193448775,-1073.4,0.00017189,2]
[401414547,1768193448785,-350.68764993,0.000172,2]
[401414548,1768193448796,-5800.0,0.000172,6]
[401414549,1768193448807,-350.68764993,0.00017218,2]
[401414550,1768193448816,-150.0,0.00017229,2]
[401414551,1768193448826,-150.0,0.00017229,2]
[401414552,1768193448835,-350.68764993,0.00017236,2]
[401414553,1768193448844,-150.0,0.0001725,2]
[401414554,1768193448854,-350.68764993,0.00017255,2]
[401414555,1768193448863,-319.66,0.00017272,2]
[401414556,1768193448873,-350.68764993,0.00017273,2]
[401414557,1768193448882,-150.0,0.0001728,2]
[401414558,1768193448891,-1073.4,0.0001729,2]
[401414559,1768193448900,-350.68764993,0.00017291,2]
[401414560,1768193448909,-7800.0,0.000173,6]
[401414561,1768193448919,-150.0,0.00017308,2]
[401414562,1768193448928,-350.68764993,0.00017309,2]
[401414563,1768193448938,-13220.76092192,0.00017313,2]
[401414564,1768193448947,-150.0,0.00017325,2]
[401414565,1768193448955,-150.0,0.00017325,2]
[401414566,1768193448964,-350.68764993,0.00017327,2]
[401414567,1768193448974,-350.68764993,0.00017345,2]
[401414568,1768193448983,-150.0,0.00017357,2]
[401414569,1768193448992,-150.0,0.00017357,2]
[401414570,1768193449002,-843.0,0.0001736,2]
[401414571,1768193449011,-350.68764993,0.00017364,2]
[401414572,1768193449020,-350.68764993,0.00017382,2]
[401414573,1768193449029,-158.73335703,0.00017391,2]
[401414574,1768193449038,-1073.4,0.00017392,2]
[401414575,1768193449047,-150.0,0.000174,2]
[401414576,1768193449056,-150.0,0.000174,2]
[401414577,1768193449066,-150.0,0.000174,2]
[401414578,1768193449076,-350.68764993,0.000174,2]
[401414579,1768193449087,-1000.0,0.000174,2]
[401414580,1768193449102,-9800.0,0.000174,6]
[401414581,1768193449112,-350.68764993,0.00017418,2]
[401414582,1768193449123,-350.68764993,0.00017436,2]
[401414583,1768193449132,-469.78735424,0.00017441,2]
[401414584,1768193449143,-150.0,0.00017446,2]
[401414585,1768193449152,-150.87,0.00017452,2]
[401414586,1768193449164,-350.68764993,0.00017455,2]
[401414587,1768193449173,-150.0,0.0001746,2]
[401414588,1768193449183,-285.96,0.00017466,2]
[401414589,1768193449193,-350.68764993,0.00017473,2]
[401414590,1768193449204,-150.0,0.00017486,2]
[401414591,1768193449214,-150.0,0.00017486,2]
[401414592,1768193449225,-350.68764993,0.00017491,2]
[401414593,1768193449235,-1073.4,0.00017493,2]
[401414594,1768193449245,-2000.0,0.000175,2]
[401414595,1768193449255,-4307.04643237,0.000175,2]
[401414596,1768193449264,-1900.0,0.000175,6]
[401414597,1768193449274,-350.68764993,0.00017509,2]
[401414598,1768193449283,-350.68764993,0.00017527,2]
[401414599,1768193449292,-346.92554585,0.00017532,2]
[401414600,1768193449302,-666.72878,0.00017532,2]
[401414601,1768193449311,-998.0,0.00017533,2]
[401414602,1768193449321,-640.24385345,0.00017534,2]
[401414603,1768193449330,-350.68764993,0.00017545,2]
[401414604,1768193449339,-150.0,0.0001755,2]
[401414605,1768193449349,-150.0,0.0001755,2]
[401414606,1768193449358,-150.0,0.0001755,2]
[401414607,1768193449368,-150.0,0.0001755,2]
[401414608,1768193449378,-395.0,0.00017559,2]
[401414609,1768193449387,-350.68764993,0.00017564,2]
[401414610,1768193449396,-350.68764993,0.00017582,2]
[401414611,1768193449406,-346.43,0.00017584,2]
[401414612,1768193449415,-150.0,0.00017585,2]
[401414613,1768193449424,-500.0,0.00017594,2]
[401414614,1768193449434,-500.0,0.00017594,2]
[401414615,1768193449443,-500.0,0.00017594,2]
[401414616,1768193449452,-500.0,0.00017594,2]
[401414617,1768193449461,-500.0,0.00017594,2]
[401414618,1768193449470,-500.0,0.00017594,2]
[401414619,1768193449480,-1073.4,0.00017595,2]
[401414620,1768193449489,-350.68764993,0.000176,2]
[401414621,1768193449498,-1000.0,0.000176,2]
[401414622,1768193449507,-1900.0,0.000176,6]
[401414623,1768193449516,-150.0,0.00017614,2]
[401414624,1768193449526,-150.0,0.00017614,2]
[401414625,1768193449535,-350.68764993,0.00017618,2]
[401414626,1768193449544,-1046.89,0.0001762,2]
[401414627,1768193449553,-1001.39881462,0.00017621,2]
[401414628,1768193449562,-1001.49774725,0.00017621,2]
[401414629,1768193449571,-1001.98142269,0.00017621,2]
[401414630,1768193449581,-501.68963282,0.00017621,2]
[401414631,1768193449590,-500.52073568,0.00017621,2]
[401414632,1768193449599,-1000.0,0.00017621,2]
[401414633,1768193449608,-1000.0,0.00017621,2]
[401414634,1768193449618,-501.81552952,0.00017621,2]
[401414635,1768193449627,-1000.0,0.00017621,2]
[401414636,1768193449636,-1000.0,0.00017621,2]
[401414637,1768193449645,-1002.11848052,0.00017621,2]
[401414638,1768193449655,-1000.0,0.00017621,2]
[401414639,1768193449664,-604.83613644,0.00017621,2]
[401414640,1768193449674,-1002.68294103,0.00017621,2]
[401414641,1768193449683,-502.50985622,0.00017621,2]
[401414642,1768193449692,-1000.0,0.00017621,2]
[401414643,1768193449702,-350.68764993,0.00017636,2]
[401414644,1768193449711,-150.0,0.0001764,2]
[401414645,1768193449720,-2526.34474309,0.0001764,2]
[401414646,1768193449730,-350.68764993,0.00017655,2]
[401414647,1768193449739,-350.68764993,0.00017673,2]
[401414648,1768193449748,-1778.0,0.00017687,2]
[401414649,1768193449758,-350.68764993,0.00017691,2]
[401414650,1768193449767,-1073.4,0.00017696,2]
[401414651,1768193449776,-317.89217192,0.00017698,2]
[401414652,1768193449786,-150.0,0.000177,2]
[401414653,1768193449796,-150.0,0.000177,2]
[401414654,1768193449807,-1900.0,0.000177,6]
[401414655,1768193449817,-28559.0,0.000177,2]
[401414656,1768193449826,-350.68764993,0.00017709,2]
[401414657,1768193449835,-1252.0,0.00017711,2]
[401414658,1768193449844,-1000.0,0.00017721,2]
[401414659,1768193449854,-150.0,0.00017723,2]
[401414660,1768193449864,-350.68764993,0.00017727,2]
[401414661,1768193449875,-1000.0,0.00017731,2]
[401414662,1768193449884,-1000.0,0.00017734,2]
[401414663,1768193449893,-150.0,0.00017743,2]
[401414664,1768193449902,-150.0,0.00017743,2]
[401414665,1768193449912,-1000.0,0.00017743,2]
[401414666,1768193449921,-350.68764993,0.00017745,2]
[401414667,1768193449931,-350.68764993,0.00017764,2]
[401414668,1768193449941,-1000.0,0.00017766,2]
[401414669,1768193449951,-1000.0,0.00017768,2]
[401414670,1768193449960,-1000.0,0.00017768,2]
[401414671,1768193449970,-150.0,0.00017775,2]
[401414672,1768193449979,-150.0,0.00017775,2]
[401414673,1768193449991,-1000.0,0.00017777,2]
[401414674,1768193450000,-350.68764993,0.00017782,2]
[401414675,1768193450010,-1000.0,0.00017796,2]
[401414676,1768193450019,-262.49854168,0.00017797,2]
[401414677,1768193450032,-1110.78417922,0.00017797,5]
[401414678,1768193450044,-1073.4,0.00017797,2]
[401414679,1768193450055,-1046.89,0.00017797,2]
[401414680,1768193450064,-1046.89,0.00017797,2]
[401414681,1768193450073,-1046.89,0.00017797,2]
[401414682,1768193450083,-1046.89,0.00017797,2]
[401414683,1768193450095,-1046.89,0.00017797,2]
[401414684,1768193450106,-317.89217191,0.00017799,2]
[401414685,1768193450116,-1000.0,0.000178,2]
[401414686,1768193450126,-350.68764993,0.000178,2]
[401414687,1768193450136,-1198.0,0.000178,2]
[401414688,1768193450147,-1900.0,0.000178,6]
[401414689,1768193450156,-156.587,0.00017807,2]
[401414690,1768193450166,-150.67981664,0.00017808,2]
[401414691,1768193450178,-1000.0,0.00017814,2]
[401414692,1768193450187,-350.68764993,0.00017818,2]
[401414693,1768193450196,-150.0,0.0001782,2]
[401414694,1768193450205,-2109.39679,0.0001782,2]
[401414695,1768193450214,-2109.39679,0.0001782,2]
[401414696,1768193450224,-910.24842296,0.0001782,2]
[401414697,1768193450234,-1000.0,0.00017822,2]
[401414698,1768193450245,-1000.0,0.00017823,2]
[401414699,1768193450255,-500.0,0.00017829,2]
[401414700,1768193450265,-83171.52894996,0.0001783,2]
[401414701,1768193450275,-2109.39679,0.0001783,2]
[401414702,1768193450285,-1000.0,0.00017832,2]
[401414703,1768193450294,-350.68764993,0.00017836,2]
[401414704,1768193450304,-1000.0,0.00017838,2]
[401414705,1768193450313,-395.0,0.00017838,2]
[401414706,1768193450322,-25000.0,0.00017838,3]
[401414707,1768193450332,-1000.0,0.00017839,2]
[401414708,1768193450341,-1000.0,0.0001784,2]
[401414709,1768193450351,-25000.0,0.00017847,3]
[401414710,1768193450361,-150.0,0.0001785,2]
[401414711,1768193450373,-152.14276638,0.0001785,2]
[401414712,1768193450382,-1000.0,0.00017851,2]
[401414713,1768193450392,-1000.0,0.00017851,2]
[401414714,1768193450403,-1000.0,0.00017854,2]
[401414715,1768193450414,-1000.0,0.00017854,2]
[401414716,1768193450423,-350.68764993,0.00017855,2]
[401414717,1768193450433,-200.0,0.00017855,2]
[401414718,1768193450443,-1046.89,0.00017855,2]
[401414719,1768193450452,-25000.0,0.00017856,3]
[401414720,1768193450463,-200.0,0.00017856,2]
[401414721,1768193450474,-1000.0,0.00017857,2]
[401414722,1768193450486,-191.78307443,0.0001786,2]
[401414723,1768193450497,-2109.39679,0.0001786,2]
[401414724,1768193450507,-150.0,0.00017862,2]
[401414725,1768193450519,-28047.0,0.00017863,2]
[401414726,1768193450528,-25000.0,0.00017865,3]
[401414727,1768193450537,-150.0,0.00017871,2]
[401414728,1768193450547,-150.0,0.00017871,2]
[401414729,1768193450556,-350.68764993,0.00017873,2]
[401414730,1768193450565,-25000.0,0.00017874,3]
[401414731,1768193450575,-395.0,0.00017874,2]
[401414732,1768193450584,-151.0,0.00017874,2]
[401414733,1768193450595,-151.0,0.00017874,2]
[401414734,1768193450604,-151.0,0.00017874,2]
[401414735,1768193450614,-378.862944,0.00017874,2]
[401414736,1768193450624,-378.862944,0.00017874,2]
[401414737,1768193450634,-475.742154,0.00017874,2]
[401414738,1768193450644,-151.0,0.00017874,2]
[401414739,1768193450655,-378.862944,0.00017874,2]
[401414740,1768193450664,-475.742154,0.00017874,2]
[401414741,1768193450674,-193.153439,0.00017874,2]
[401414742,1768193450685,-378.862944,0.00017874,2]
[401414743,1768193450695,-475.742154,0.00017874,2]
[401414744,1768193450705,-193.153439,0.00017874,2]
[401414745,1768193450715,-151.0,0.00017874,2]
[401414746,1768193450726,-151.0,0.00017874,2]
[401414747,1768193450735,-500.0,0.00017874,2]
[401414748,1768193450744,-500.0,0.00017874,2]
[401414749,1768193450753,-500.0,0.00017874,2]
[401414750,1768193450763,-475.742154,0.00017874,2]
[401414751,1768193450774,-500.0,0.00017874,2]
[401414752,1768193450784,-500.0,0.00017874,2]
[401414753,1768193450795,-193.153439,0.00017874,2]
[401414754,1768193450805,-151.0,0.00017874,2]
[401414755,1768193450815,-500.0,0.00017874,2]
[401414756,1768193450825,-151.0,0.00017874,2]
[401414757,1768193450834,-500.0,0.00017874,2]
[401414758,1768193450845,-500.0,0.00017874,2]
[401414759,1768193450855,-500.0,0.00017874,2]
[401414760,1768193450867,-500.0,0.00017874,2]
[401414761,1768193450878,-193.153439,0.00017874,2]
[401414762,1768193450887,-500.0,0.00017874,2]
[401414763,1768193450897,-151.0,0.00017874,2]
[401414764,1768193450907,-160.744631,0.00017874,2]
[401414765,1768193450918,-500.0,0.00017874,2]
[401414766,1768193450928,-151.0,0.00017874,2]
[401414767,1768193450938,-500.0,0.00017874,2]
[401414768,1768193450947,-500.0,0.00017874,2]
[401414769,1768193450956,-500.0,0.00017874,2]
[401414770,1768193450965,-258.795125,0.00017874,2]
[401414771,1768193450974,-500.0,0.00017874,2]
[401414772,1768193450984,-500.0,0.00017874,2]
[401414773,1768193450994,-500.0,0.00017874,2]
[401414774,1768193451003,-500.0,0.00017874,2]
[401414775,1768193451012,-500.0,0.00017874,2]
[401414776,1768193451022,-500.0,0.00017874,2]
[401414777,1768193451032,-500.0,0.00017874,2]
[401414778,1768193451041,-500.0,0.00017874,2]
[401414779,1768193451051,-500.0,0.00017874,2]
[401414780,1768193451061,-500.0,0.00017874,2]
[401414781,1768193451071,-500.0,0.00017874,2]
[401414782,1768193451080,-500.0,0.00017874,2]
[401414783,1768193451090,-571.794591,0.00017874,2]
[401414784,1768193451105,-323.444424,0.00017874,2]
[401414785,1768193451114,-323.444424,0.00017874,2]
[401414786,1768193451123,-323.444424,0.00017874,2]
[401414787,1768193451133,-323.444424,0.00017874,2]
[401414788,1768193451142,-151.0,0.00017874,2]
[401414789,1768193451152,-151.0,0.00017874,2]
[401414790,1768193451160,-151.0,0.00017874,2]
[401414791,1768193451170,-151.0,0.00017874,2]
[401414792,1768193451179,-151.0,0.00017874,2]
[401414793,1768193451187,-151.0,0.00017874,2]
[401414794,1768193451197,-151.0,0.00017874,2]
[401414795,1768193451206,-151.0,0.00017874,2]
[401414796,1768193451214,-151.0,0.00017874,2]
[401414797,1768193451224,-169.265713,0.00017874,2]
[401414798,1768193451234,-311.163043,0.00017874,2]
[401414799,1768193451244,-311.163043,0.00017874,2]
[401414800,1768193451255,-311.163043,0.00017874,2]
[401414801,1768193451264,-311.163043,0.00017874,2]
[401414802,1768193451279,-1088.696282,0.00017874,2]
[401414803,1768193451289,-151.0,0.00017874,2]
[401414804,1768193451299,-866.607694,0.00017874,2]
[401414805,1768193451309,-1088.696282,0.00017874,2]
[401414806,1768193451319,-151.0,0.00017874,2]
[401414807,1768193451329,-151.0,0.00017874,2]
[401414808,1768193451339,-1088.696282,0.00017874,2]
[401414809,1768193451349,-151.0,0.00017874,2]
[401414810,1768193451359,-866.607694,0.00017874,2]
[401414811,1768193451368,-151.0,0.00017874,2]
[401414812,1768193451378,-866.607694,0.00017874,2]
[401414813,1768193451387,-1088.696282,0.00017874,2]
[401414814,1768193451397,-151.0,0.00017874,2]
[401414815,1768193451406,-151.0,0.00017874,2]
[401414816,1768193451416,-866.607694,0.00017874,2]
[401414817,1768193451425,-151.0,0.00017874,2]
[401414818,1768193451435,-777.804847,0.00017874,2]
[401414819,1768193451444,-404.421894,0.00017874,2]
[401414820,1768193451454,-151.0,0.00017874,2]
[401414821,1768193451463,-777.804847,0.00017874,2]
[401414822,1768193451473,-404.421894,0.00017874,2]
[401414823,1768193451482,-536.096762,0.00017874,2]
[401414824,1768193451491,-777.804847,0.00017874,2]
[401414825,1768193451500,-536.096762,0.00017874,2]
[401414826,1768193451509,-404.421894,0.00017874,2]
[401414827,1768193451518,-777.804847,0.00017874,2]
[401414828,1768193451528,-536.096762,0.00017874,2]
[401414829,1768193451537,-404.421894,0.00017874,2]
[401414830,1768193451546,-151.0,0.00017874,2]
[401414831,1768193451556,-151.0,0.00017874,2]
[401414832,1768193451566,-536.096762,0.00017874,2]
[401414833,1768193451576,-151.0,0.00017874,2]
[401414834,1768193451586,-151.0,0.00017874,2]
[401414835,1768193451595,-151.0,0.00017874,2]
[401414836,1768193451605,-151.0,0.00017874,2]
[401414837,1768193451614,-151.0,0.00017874,2]
[401414838,1768193451623,-151.0,0.00017874,2]
[401414839,1768193451633,-151.0,0.00017874,2]
[401414840,1768193451642,-151.0,0.00017874,2]
[401414841,1768193451656,-151.0,0.00017874,2]
[401414842,1768193451665,-207.224269,0.00017874,2]
[401414843,1768193451675,-2277.167351,0.00017874,2]
[401414844,1768193451684,-207.224269,0.00017874,2]
[401414845,1768193451693,-2277.167351,0.00017874,2]
[401414846,1768193451703,-207.224269,0.00017874,2]
[401414847,1768193451712,-2277.167351,0.00017874,2]
[401414848,1768193451722,-207.224269,0.00017874,2]
[401414849,1768193451731,-2544.397561,0.00017874,2]
[401414850,1768193451740,-2277.167351,0.00017874,2]
[401414851,1768193451750,-2544.397561,0.00017874,2]
[401414852,1768193451760,-2544.397561,0.00017874,2]
[401414853,1768193451770,-2544.397561,0.00017874,2]
[401414854,1768193451779,-151.0,0.00017874,2]
[401414855,1768193451790,-876.570737,0.00017874,2]
[401414856,1768193451799,-151.0,0.00017874,2]
[401414857,1768193451809,-876.570737,0.00017874,2]
[401414858,1768193451819,-151.0,0.00017874,2]
[401414859,1768193451829,-151.0,0.00017874,2]
[401414860,1768193451841,-876.570737,0.00017874,2]
[401414861,1768193451851,-895.101573,0.00017874,2]
[401414862,1768193451861,-151.0,0.00017874,2]
[401414863,1768193451872,-151.0,0.00017874,2]
[401414864,1768193451881,-895.101573,0.00017874,2]
[401414865,1768193452097,-876.570737,0.00017874,2]
[401414866,1768193452109,-895.101573,0.00017874,2]
[401414867,1768193452120,-895.101573,0.00017874,2]
[401414868,1768193452130,-151.0,0.00017874,2]
[401414869,1768193452143,-151.0,0.00017874,2]
[401414870,1768193452152,-151.0,0.00017874,2]
[401414871,1768193452162,-151.0,0.00017874,2]
[401414872,1768193452173,-151.0,0.00017874,2]
[401414873,1768193452183,-151.0,0.00017874,2]
[401414874,1768193452193,-151.0,0.00017874,2]
[401414875,1768193452203,-283.03324,0.00017874,2]
[401414876,1768193452213,-151.0,0.00017874,2]
[401414877,1768193452223,-170.961963,0.00017874,2]
[401414878,1768193452234,-1000.0,0.00017877,2]
[401414879,1768193452244,-1054.4366,0.0001788,2]
[401414880,1768193452256,-2109.39679,0.0001788,2]
[401414881,1768193452266,-1000.0,0.00017881,2]
[401414882,1768193452276,-456.07319796,0.00017882,2]
[401414883,1768193452287,-25000.0,0.00017882,3]
[401414884,1768193452297,-1000.0,0.00017888,2]
[401414885,1768193452311,-350.68764993,0.00017891,2]
[401414886,1768193452321,-395.0,0.00017891,2]
[401414887,1768193452331,-25000.0,0.00017891,3]
[401414888,1768193452341,-1000.0,0.00017896,2]
[401414889,1768193452350,-1073.4,0.00017899,2]
[401414890,1768193452360,-1046.89,0.00017899,2]
[401414891,1768193452370,-14981.27545297,0.000179,3]
[401414892,1768193452380,-4831.1649,0.000179,2]
[401414893,1768193452391,-25000.0,0.000179,3]
[401414894,1768193452401,-196.81558966,0.000179,2]
[401414895,1768193452414,-25000.0,0.000179,3]
[401414896,1768193452425,-14596.60549836,0.000179,2]
[401414897,1768193452435,-317.89217191,0.000179,2]
[401414898,1768193452446,-2438.0,0.000179,6]
[401414899,1768193452457,-150.0,0.000179,2]
[401414900,1768193452467,-150.0,0.000179,2]
[401414901,1768193452478,-1285.4435958,0.000179,2]
[401414902,1768193452487,-1285.44359573,0.000179,2]
[401414903,1768193452502,-13220.76092192,0.000179,2]
[401414904,1768193452513,-1285.44359573,0.000179,2]
[401414905,1768193452525,-1285.44359573,0.000179,2]
[401414906,1768193452534,-1285.44359573,0.000179,2]
[401414907,1768193452544,-1285.44359573,0.000179,2]
[401414908,1768193452553,-1285.44359573,0.000179,2]
[401414909,1768193452564,-1285.44359573,0.000179,2]
[401414910,1768193452575,-1285.44359573,0.000179,2]
[401414911,1768193452584,-718.34267946,0.000179,3]
[401414912,1768193452595,-1285.44359573,0.000179,2]
[401414913,1768193452605,-1285.44359573,0.000179,2]
[401414914,1768193452614,-1285.44359573,0.000179,2]
[401414915,1768193452624,-1285.44359573,0.000179,2]
[401414916,1768193452633,-1285.44359573,0.000179,2]
[401414917,1768193452644,-500.0,0.000179,2]
[401414918,1768193452655,-500.0,0.000179,2]
[401414919,1768193452665,-500.0,0.000179,2]
[401414920,1768193452675,-500.0,0.000179,2]
[401414921,1768193452685,-500.0,0.000179,2]
[401414922,1768193452698,-500.0,0.000179,2]
[401414923,1768193452709,-500.0,0.000179,2]
[401414924,1768193452719,-500.0,0.000179,2]
[401414925,1768193452730,-500.0,0.000179,2]
[401414926,1768193452742,-500.0,0.000179,2]
[401414927,1768193452752,-500.0,0.000179,2]
[401414928,1768193452762,-500.0,0.000179,2]
[401414929,1768193452773,-500.0,0.000179,2]
[401414930,1768193452783,-500.0,0.000179,2]
[401414931,1768193452794,-500.0,0.000179,2]
[401414932,1768193452804,-500.0,0.000179,2]
[401414933,1768193452814,-500.0,0.000179,2]
[401414934,1768193452823,-500.0,0.000179,2]
[401414935,1768193452833,-500.0,0.000179,2]
[401414936,1768193452842,-500.0,0.000179,2]
[401414937,1768193452852,-500.0,0.000179,2]
[401414938,1768193452862,-500.0,0.000179,2]
[401414939,1768193452871,-500.0,0.000179,2]
[401414940,1768193452880,-500.0,0.000179,2]
[401414941,1768193452890,-500.0,0.000179,2]
[401414942,1768193452899,-500.0,0.000179,2]
[401414943,1768193452909,-500.0,0.000179,2]
[401414944,1768193452919,-500.0,0.000179,2]
[401414945,1768193452928,-500.0,0.000179,2]
[401414946,1768193452937,-500.0,0.000179,2]
[401414947,1768193452947,-500.0,0.000179,2]
[401414948,1768193452957,-500.0,0.000179,2]
[401414949,1768193452967,-500.0,0.000179,2]
[401414950,1768193452976,-500.0,0.000179,2]
[401414951,1768193452997,-500.0,0.000179,2]
[401414952,1768193453008,-500.0,0.000179,2]
[401414953,1768193453018,-500.0,0.000179,2]
[401414954,1768193453029,-500.0,0.000179,2]
[401414955,1768193453039,-500.0,0.000179,2]
[401414956,1768193453049,-500.0,0.000179,2]
[401414957,1768193453059,-500.0,0.000179,2]
[401414958,1768193453069,-500.0,0.000179,2]
[401414959,1768193453080,-500.0,0.000179,2]
[401414960,1768193453090,-500.0,0.000179,2]
[401414961,1768193453104,-500.0,0.000179,2]
[401414962,1768193453114,-500.0,0.000179,2]
[401414963,1768193453125,-301.9716591,0.000179,2]
[401414964,1768193453135,-8075.0,0.000179,2]
[401414965,1768193453145,-1000.0,0.00017901,2]
[401414966,1768193453155,-1000.0,0.00017905,2]